bitfinex/quotes_ETHUSD_20260114
["timestamp","ask_amount","ask_price","bid_price","bid_amount"]
[1768417490297,0.59957986,3341.6,3340.1,0.94742635]
[1768417491000,0.001,3341.6,3340.1,0.94742635]
[1768417491496,0.001,3341.6,3340.1,4.83742635]
[1768417491674,0.001,3341.6,3340.2,1.27745399]
[1768417492072,0.001,3341.6,3340.4,1.27745399]
[1768417492596,0.001,3341.6,3340.5,0.396]
[1768417492898,0.001,3341.6,3340.6,1.27745399]
[1768417493396,0.001,3341.6,3340.6,1.44479939]
[1768417494201,0.001,3341.6,3340.7,0.396]
[1768417494568,0.001,3341.6,3340.7,1.67345399]
[1768417494766,0.001,3341.6,3340.8,1.27745399]
[1768417494975,0.001,3341.6,3340.9,0.61691409]
[1768417495180,0.001,3341.6,3341.0,0.61691409]
[1768417495382,5.98318724,3342.7,3341.2,1.27745399]
[1768417495616,0.59831872,3342.6,3341.3,2.29036808]
[1768417495817,0.59831872,3342.6,3341.4,0.61691409]
[1768417496117,5.98354524,3342.5,3341.5,0.61691409]
[1768417496313,5.98354524,3342.5,3341.4,0.396]
[1768417496484,5.98354524,3342.5,3341.5,0.61641401]
[1768417496684,0.002,3341.6,3341.4,0.396]
[1768417496886,0.002,3341.6,3341.5,0.61642801]
[1768417497095,0.58198584,3342.4,3341.5,0.61642801]
[1768417497294,0.58198584,3342.4,3341.4,0.396]
[1768417497500,0.6381782,3342.3,3341.5,1.01143377]
[1768417497814,0.6381782,3342.3,3341.4,0.395]
[1768417498015,2.99204117,3342.2,3341.5,0.61649953]
[1768417498216,5.98408234,3342.2,3341.4,0.395]
[1768417498385,2.99204117,3342.2,3341.5,0.61658585]
[1768417498586,0.66221696,3342.1,3341.4,0.395]
[1768417498781,0.66221696,3342.1,3341.5,0.61658886]
[1768417499016,0.66221696,3342.1,3341.1,0.395]
[1768417499202,0.66221696,3342.1,3341.2,0.6166276]
[1768417499402,0.66221696,3342.1,3340.3,14.5]
[1768417499403,0.03740275,3342.0,3340.5,1.27745399]
[1768417499609,0.96757432,3341.9,3340.6,0.395]
[1768417499806,0.96757432,3341.9,3340.5,1.27745399]
[1768417500003,5.9847986,3341.8,3340.6,0.395]
[1768417500317,1.23546493,3341.7,3339.7,1.27745399]
[1768417500491,1.23546493,3341.7,3339.8,0.42494191]
[1768417500699,1.23546493,3341.5,3339.8,0.395]
[1768417500906,1.41726365,3341.6,3339.9,1.307395]
[1768417501206,1.74686153,3341.6,3339.9,4.27148839]
[1768417501387,1.34686153,3341.6,3340.0,1.27745399]
[1768417501585,1.34686153,3341.6,3340.3,4.27118465]
[1768417501785,2.9923993,3341.8,3340.4,1.73450899]
[1768417502023,3.11914092,3343.3,3340.4,1.73450899]
[1768417502024,5.98372426,3342.4,3340.8,1.27745399]
[1768417502797,5.98372426,3342.4,3338.7,0.05]
[1768417502798,1.23546493,3342.3,3338.7,0.05]
[1768417502997,1.23546493,3342.3,3337.0,3.61736149]
[1768417502998,29.952578,3338.4,3337.0,3.61736149]
[1768417503192,2.9952578,3338.3,3336.8,1.27745399]
[1768417503439,2.9952578,3338.3,3336.7,0.395]
[1768417503440,0.128,3339.9,3338.3,2.26765305]
[1768417503761,1.23546493,3340.6,3338.3,0.02]
[1768417503889,0.4,3340.5,3338.3,1.29745399]
[1768417504096,29.952578,3339.1,3338.3,0.02]
[1768417504425,3.0581975,3339.1,3338.3,0.02]
[1768417504626,5.98935844,3339.3,3338.3,0.02]
[1768417504795,30.0,3339.1,3338.3,0.02]
[1768417505097,29.88924581,3339.1,3338.3,0.02]
[1768417505293,29.889246,3339.1,3338.3,0.02]
[1768417506419,32.88408455,3339.1,3338.3,0.02]
[1768417506728,3.0581975,3339.0,3338.3,0.02]
[1768417506924,2.99428092,3339.7,3338.3,0.02]
[1768417507093,29.81886549,3339.1,3338.3,0.02]
[1768417507630,29.74847939,3339.1,3338.3,0.02]
[1768417508228,2.99490865,3339.0,3338.3,0.02]
[1768417508416,29.74848,3338.7,3338.6,0.001]
[1768417508738,29.74848,3338.7,3337.3,2.99640743]
[1768417508739,29.74848,3338.4,3336.1,14.5]
[1768417509033,29.74848,3337.6,3336.3,1.27745399]
[1768417509326,29.74848,3337.8,3336.5,1.27745399]
[1768417509491,29.74848,3337.8,3337.6,0.011]
[1768417509828,0.4,3338.5,3336.5,0.395]
[1768417509829,29.74848,3337.4,3336.5,0.395]
[1768417510046,29.11505545,3337.4,3336.5,0.395]
[1768417510228,28.07017067,3337.4,3336.5,0.395]
[1768417510528,2.99567529,3338.2,3336.5,0.395]
[1768417510827,25.073748,3337.4,3336.4,0.395]
[1768417511123,25.073748,3337.4,3336.0,1.27745399]
[1768417511331,25.073748,3337.4,3336.1,0.395]
[1768417511701,0.13450525,3336.8,3336.1,0.395]
[1768417512806,3.13138933,3336.8,3336.1,0.395]
[1768417513012,25.07375825,3336.8,3336.1,0.395]
[1768417513324,27.88081161,3336.8,3335.8,0.395]
[1768417513630,30.87772795,3336.8,3335.8,0.395]
[1768417513849,33.87464429,3336.8,3335.8,0.395]
[1768417514323,24.939253,3336.7,3335.5,1.27745399]
[1768417514525,24.939253,3336.4,3335.1,2.12434845]
[1768417514835,24.939253,3336.4,3335.0,1.27745399]
[1768417514836,24.939253,3336.4,3335.2,3.39328772]
[1768417515044,24.939253,3336.4,3335.3,2.99822125]
[1768417515449,24.939253,3336.3,3335.2,0.395]
[1768417515636,24.939253,3336.3,3335.0,1.27745399]
[1768417515934,2.04202468,3336.2,3335.1,0.395]
[1768417516135,8.99074902,3336.8,3335.1,0.395]
[1768417516448,2.99706287,3336.6,3335.2,0.395]
[1768417516748,0.13450525,3336.0,3335.2,0.395]
[1768417517062,0.13450525,3336.0,3335.3,1.27745399]
[1768417517224,0.13450525,3336.0,3335.4,0.4700759]
[1768417517422,0.13450525,3336.0,3335.5,0.395]
[1768417518552,0.13450525,3336.0,3335.4,0.4700759]
[1768417518758,0.13450525,3336.0,3335.5,0.396]
[1768417519056,0.13450525,3336.0,3334.8,1.27745399]
[1768417519351,0.13450525,3336.0,3335.1,1.27745399]
[1768417519554,0.13450525,3336.0,3335.2,2.99831538]
[1768417519929,0.13450525,3336.0,3335.1,4.27583213]
[1768417520264,0.13450525,3336.0,3335.2,5.41343103]
[1768417520463,0.06169319,3336.0,3335.8,0.001]
[1768417521551,8.9884947,3337.6,3335.8,1.61525148]
[1768417521868,6.3923298,3337.6,3335.8,1.61525148]
[1768417522081,1.18049742,3337.5,3335.9,1.81537663]
[1768417522481,8.98903335,3337.4,3335.9,1.81537663]
[1768417523358,5.9926889,3337.4,3336.0,1.61425148]
[1768417523558,2.99634445,3337.4,3336.1,1.61425148]
[1768417523758,0.4,3337.6,3335.9,6.19650835]
[1768417523759,2.9961649,3337.6,3336.3,1.61425148]
[1768417523977,5.9923298,3337.6,3336.3,1.61425148]
[1768417524555,5.9923298,3337.6,3336.2,0.78107598]
[1768417524754,8.9884947,3337.6,3336.2,0.396]
[1768417525190,5.9923298,3337.6,3336.2,2.01025148]
[1768417526378,8.9884947,3337.6,3336.2,2.01025148]
[1768417526580,1.61735997,3337.5,3335.9,0.20112515]
[1768417526888,1.61735997,3337.5,3336.0,0.396]
[1768417527193,1.61735997,3337.5,3335.8,0.001]
[1768417527692,1.61735997,3337.5,3335.6,0.396]
[1768417527877,1.61735997,3337.5,3335.7,0.02997871]
[1768417528085,3.39710426,3337.4,3335.8,0.20402302]
[1768417528272,1.61735997,3337.3,3335.8,0.20402302]
[1768417528472,1.61735997,3337.3,3335.6,0.396]
[1768417528682,1.61735997,3337.1,3335.6,0.396]
[1768417528990,1.61735997,3337.1,3335.1,1.64423558]
[1768417528991,2.01735997,3337.1,3335.7,0.396]
[1768417529291,1.65481876,3337.0,3335.1,1.61425148]
[1768417529593,3.02145146,3336.9,3335.2,0.85728213]
[1768417529796,3.02145146,3336.9,3335.2,0.396]
[1768417530307,1.61735997,3336.8,3335.3,0.396]
[1768417530804,8.99091915,3336.7,3335.3,0.396]
[1768417531176,13.60525217,3336.7,3335.4,0.396]
[1768417531500,1.53839765,3336.6,3335.4,0.396]
[1768417531683,1.61735997,3336.5,3334.8,1.61425148]
[1768417531991,1.61735997,3336.5,3334.5,0.012]
[1768417531992,1.61735997,3336.3,3336.0,0.001]
[1768417532292,1.61735997,3336.3,3334.9,0.396]
[1768417533092,8.99226663,3336.2,3334.9,0.396]
[1768417533395,1.36069368,3336.1,3334.9,0.396]
[1768417535183,5.99520382,3336.0,3334.9,0.396]
[1768417535359,11.99040764,3336.0,3334.7,3.89]
[1768417535768,8.99280573,3336.0,3334.8,0.396]
[1768417535989,1.03534994,3335.9,3334.8,0.396]
[1768417537384,8.99334492,3335.8,3334.8,0.396]
[1768417538699,0.03747339,3335.7,3334.7,0.396]
[1768417539205,1.61735997,3335.1,3333.2,1.61425148]
[1768417539410,0.87641105,3335.0,3333.7,0.396]
[1768417539575,0.27872089,3334.9,3333.7,0.396]
[1768417539897,0.79925846,3334.9,3333.7,0.396]
[1768417540296,0.79925846,3334.9,3333.7,2.01025148]
[1768417540459,0.79925846,3334.9,3333.9,1.61425148]
[1768417540663,0.79925846,3334.9,3334.0,1.81827621]
[1768417541298,0.79925846,3334.9,3334.0,4.8176744]
[1768417541507,0.79925846,3334.9,3334.1,1.61425148]
[1768417541873,0.79925846,3334.9,3334.2,0.0299922]
[1768417542072,0.79925846,3334.9,3334.3,2.01025148]
[1768417542398,0.79925846,3334.9,3334.4,1.81827585]
[1768417542965,5.99520382,3336.0,3334.8,1.61425148]
[1768417543165,5.99484442,3336.2,3334.9,0.44683657]
[1768417543599,5.99484442,3336.2,3334.9,0.41685067]
[1768417543800,5.99484442,3336.2,3335.0,0.20311022]
[1768417544239,5.99412574,3336.6,3335.0,1.8473467]
[1768417545399,0.002,3336.8,3335.2,1.61425148]
[1768417547104,0.002,3336.8,3335.3,4.61248252]
[1768417547330,0.002,3336.8,3335.4,0.76108934]
[1768417547516,0.002,3336.8,3335.5,0.396]
[1768417549536,1.65682101,3336.8,3335.6,0.396]
[1768417549705,1.61935997,3336.8,3335.6,0.396]
[1768417550102,0.002,3336.8,3335.6,2.01025148]
[1768417550302,0.002,3336.8,3335.7,0.50082885]
[1768417551213,0.002,3336.8,3335.8,1.68981176]
[1768417551744,2.68195292,3336.9,3335.8,1.68981176]
[1768417552406,6.47302489,3337.0,3335.8,1.6857723]
[1768417552611,1.73031197,3336.9,3335.7,3.89]
[1768417552843,1.73031197,3336.9,3335.8,0.396]
[1768417553013,1.69285206,3336.9,3335.9,0.396]
[1768417553215,1.69285206,3336.7,3335.9,0.396]
[1768417553437,5.99412574,3336.6,3335.9,0.396]
[1768417555519,5.9939461,3336.7,3335.9,0.396]
[1768417556018,8.99091915,3336.7,3335.9,0.396]
[1768417556349,10.68377121,3336.7,3335.8,0.396]
[1768417556646,0.002,3336.5,3335.8,0.396]
[1768417556815,0.002,3336.5,3335.1,3.89]
[1768417557015,1.73231646,3336.5,3335.2,0.396]
[1768417557211,0.002,3336.5,3335.2,5.08412508]
[1768417557964,5.9963054,3336.5,3335.2,2.08581176]
[1768417558114,7.37234551,3336.5,3335.2,6.00396462]
[1768417558314,7.33488111,3336.5,3335.2,6.00396462]
[1768417558751,7.33488111,3336.5,3335.3,1.68981176]
[1768417559185,5.9963054,3336.5,3335.3,1.68981176]
[1768417559887,2.9991527,3336.5,3335.4,1.71979317]
[1768417560089,0.002,3336.5,3335.4,4.68794342]
[1768417560266,0.002,3336.5,3335.4,1.68981176]
[1768417560471,0.002,3336.5,3335.2,1.31583505]
[1768417560671,1.69485206,3336.5,3335.3,0.7098757]
[1768417561205,0.002,3336.5,3335.4,2.99813212]
[1768417561410,0.002,3336.5,3335.5,1.68981176]
[1768417561722,0.002,3336.5,3335.7,1.68981176]
[1768417561903,2.998887,3336.8,3335.7,1.68981176]
[1768417561904,0.002,3336.8,3336.2,1.68981176]
[1768417562067,0.47956677,3337.0,3335.8,0.42597781]
[1768417562068,0.002,3337.1,3336.7,1.68981176]
[1768417562268,0.002,3337.1,3336.8,0.396]
[1768417562468,0.002,3337.1,3336.9,0.396]
[1768417562710,0.002,3337.1,3337.0,0.396]
[1768417563518,2.99866993,3337.1,3336.9,0.396]
[1768417563718,2.99866993,3337.1,3336.9,0.3796883]
[1768417564136,2.99866993,3337.1,3336.7,0.396]
[1768417564137,0.002,3337.1,3336.7,0.396]
[1768417564295,0.002,3337.1,3336.1,1.68981176]
[1768417564654,0.002,3337.1,3336.2,0.396]
[1768417564953,1.69485206,3337.1,3335.5,3.89]
[1768417565109,1.69285206,3336.9,3335.6,0.396]
[1768417565307,1.69285206,3336.7,3335.1,2.99838955]
[1768417565512,1.90334665,3336.6,3335.2,1.1849892]
[1768417566094,1.90334665,3336.6,3335.2,4.18329077]
[1768417566095,5.9943054,3336.5,3335.2,4.18329077]
[1768417566297,5.9943054,3336.5,3335.3,0.396]
[1768417567423,2.9971527,3336.5,3335.4,2.08581176]
[1768417567738,2.9971527,3336.5,3335.5,1.68981176]
[1768417567922,5.9943054,3336.5,3335.5,2.27712143]
[1768417568749,5.99368838,3336.9,3335.6,0.002]
[1768417568901,0.001,3336.5,3335.6,0.002]
[1768417569535,0.001,3336.5,3335.6,0.03197961]
[1768417570429,0.001,3336.5,3335.6,0.002]
[1768417570723,0.001,3336.5,3335.6,0.86933606]
[1768417572296,0.001,3336.5,3335.6,0.002]
[1768417572706,5.9953054,3336.5,3335.7,0.396]
[1768417572906,1.69285206,3336.2,3334.0,0.002]
[1768417573128,0.71805711,3336.4,3334.0,0.002]
[1768417573129,1.795,3336.0,3334.3,1.68981176]
[1768417573426,1.69285206,3336.1,3334.4,0.50660058]
[1768417573626,1.44285206,3336.1,3334.4,2.19641234]
[1768417573827,1.44285206,3336.1,3334.5,0.396]
[1768417574130,1.44285206,3336.1,3334.6,2.08581176]
[1768417574335,1.27076679,3336.3,3334.7,1.97904069]
[1768417574732,5.99484442,3336.2,3334.7,1.97904069]
[1768417575042,5.99484442,3336.2,3334.8,1.68981176]
[1768417575335,5.99484442,3336.2,3334.9,1.71979766]
[1768417576501,5.99484442,3336.2,3334.9,1.68981176]
[1768417576702,7.10353418,3336.2,3335.0,0.49477815]
[1768417576902,7.10353418,3336.2,3335.1,0.396]
[1768417577229,7.10353418,3336.2,3335.0,0.49477815]
[1768417577431,2.99726503,3336.4,3335.2,1.68981176]
[1768417577634,2.99726503,3336.4,3335.3,1.68981176]
[1768417578145,2.99726503,3336.4,3335.4,0.396]
[1768417578654,2.99726503,3336.4,3335.4,2.08581176]
[1768417578826,0.001,3336.5,3335.5,0.20858118]
[1768417579854,0.001,3336.5,3335.5,1.89839294]
[1768417580051,0.001,3336.5,3335.6,1.71979137]
[1768417580621,0.001,3336.5,3335.6,1.68981176]
[1768417580849,0.001,3336.5,3335.9,1.49215428]
[1768417581036,0.001,3336.5,3336.1,1.49215428]
[1768417581357,0.002,3337.1,3336.1,1.49215428]
[1768417582242,0.002,3338.2,3337.1,1.49215428]
[1768417582456,2.99767468,3338.2,3337.2,1.88815428]
[1768417582656,2.99767468,3338.2,3337.3,1.49215428]
[1768417582657,0.002,3338.2,3337.3,1.49215428]
[1768417583520,0.002,3338.2,3335.8,4.44111559]
[1768417583521,0.03944532,3338.2,3336.9,1.49215428]
[1768417583821,0.002,3338.2,3337.0,4.88485397]
[1768417584032,0.002,3338.2,3337.1,1.49215428]
[1768417584460,0.002,3338.2,3337.2,0.396]
[1768417584654,0.61993564,3338.1,3336.6,1.49215428]
[1768417584857,5.99179124,3337.9,3336.7,0.396]
[1768417585159,5.99179124,3337.9,3336.7,1.88815428]
[1768417585658,2.99589562,3337.9,3336.8,1.49215428]
[1768417585857,3.65725959,3337.9,3336.9,0.396]
[1768417586054,6.65315521,3337.9,3336.9,0.396]
[1768417586356,6.65315521,3337.9,3336.7,2.99697176]
[1768417586357,6.65315521,3337.9,3337.0,0.396]
[1768417587526,6.65315521,3337.9,3336.7,4.4891065]
[1768417587729,6.65315521,3337.9,3336.8,0.396]
[1768417587931,0.72730909,3337.8,3336.8,0.396]
[1768417588682,2.99589409,3338.0,3336.9,1.49215428]
[1768417589023,5.99178818,3338.0,3336.9,1.49215428]
[1768417589436,5.99178818,3338.0,3336.9,4.48894582]
[1768417589826,5.99178818,3338.0,3337.0,1.49215428]
[1768417590669,0.002,3338.2,3337.1,0.396]
[1768417590876,0.91948362,3338.1,3337.1,0.396]
[1768417591035,0.002,3338.2,3337.2,1.49215428]
[1768417591551,1.44016661,3339.6,3338.0,1.49215428]
[1768417591733,1.44016661,3339.9,3338.2,1.49215428]
[1768417591940,2.9938327,3340.2,3338.4,1.49215428]
[1768417592466,1.47759063,3340.1,3338.5,0.396]
[1768417592663,1.47759063,3340.1,3338.6,0.396]
[1768417592664,7.42836983,3339.9,3338.6,0.396]
[1768417593204,0.03742739,3339.8,3338.4,1.49215428]
[1768417593429,7.42836983,3339.9,3338.5,0.396]
[1768417593712,8.98230483,3339.9,3338.5,0.396]
[1768417594057,0.002,3339.4,3338.5,0.396]
[1768417594460,0.002,3339.4,3338.5,0.58481543]
[1768417594687,0.002,3339.4,3338.5,5.07229995]
[1768417594898,0.002,3339.4,3338.6,1.49215428]
[1768417595286,0.002,3339.4,3338.7,0.396]
[1768417596264,0.002,3339.4,3338.6,1.49215428]
[1768417596600,0.002,3339.4,3338.7,0.396]
[1768417597158,1.44016661,3340.8,3338.9,1.49215428]
[1768417597586,6.02472756,3340.4,3338.9,1.49215428]
[1768417597787,9.01838101,3340.4,3338.9,1.49215428]
[1768417597981,8.98096035,3340.4,3339.0,0.396]
[1768417599259,1.44016661,3340.3,3338.8,3.89]
[1768417599463,1.44016661,3340.1,3338.9,0.396]
[1768417599660,1.44016661,3340.1,3338.8,3.89]
[1768417599981,1.44016661,3339.9,3338.6,0.396]
[1768417600162,1.44016661,3339.8,3337.8,3.89]
[1768417600362,0.4,3339.9,3337.9,1.88815428]
[1768417600363,1.44016661,3339.6,3337.9,1.88815428]
[1768417600563,1.44016661,3339.6,3338.0,1.49215428]
[1768417601257,8.98338072,3339.5,3338.0,1.49215428]
[1768417601488,1.44016661,3339.3,3337.6,1.49215428]
[1768417601698,1.44016661,3339.2,3337.7,0.396]
[1768417602193,1.44016661,3339.2,3337.8,2.99598237]
[1768417602393,1.44016661,3339.2,3337.7,1.88815428]
[1768417603395,0.4,3339.3,3337.3,1.49215428]
[1768417603396,1.44016661,3339.0,3337.3,1.49215428]
[1768417603696,0.03743747,3338.9,3337.4,3.39227225]
[1768417603893,1.47760408,3338.9,3337.3,1.88115428]
[1768417604096,1.47760408,3338.9,3337.4,0.396]
[1768417604504,1.44016661,3338.9,3337.4,0.396]
[1768417604662,1.47760408,3338.9,3337.3,0.396]
[1768417604867,1.44016661,3338.7,3337.3,0.396]
[1768417605365,5.99053494,3338.6,3337.7,0.001]
[1768417606009,2.99518307,3338.7,3337.7,1.49315428]
[1768417606601,0.4,3339.3,3337.8,0.02995985]
[1768417606899,5.98945854,3339.2,3337.8,1.49215428]
[1768417607105,5.98945854,3339.2,3337.7,0.001]
[1768417607106,1.44016661,3339.1,3337.7,0.001]
[1768417607280,9.76715033,3339.2,3337.7,0.001]
[1768417607281,6.77242106,3339.2,3337.9,1.49215428]
[1768417607482,6.77242106,3339.2,3337.9,4.48796448]
[1768417607882,6.77242106,3339.2,3337.9,1.49215428]
[1768417608084,6.77242106,3339.2,3337.9,4.48804042]
[1768417608279,6.77242106,3339.2,3338.0,0.78810496]
[1768417609199,6.77242106,3339.2,3338.0,1.18410496]
[1768417609390,3.77769179,3339.2,3338.0,5.6720267]
[1768417609593,2.99472927,3339.2,3338.1,1.49215428]
[1768417609774,2.9946762,3339.3,3338.1,1.49215428]
[1768417610478,2.99446024,3339.5,3338.3,1.50072947]
[1768417610672,2.99430687,3339.7,3338.5,1.50072947]
[1768417610869,5.98861374,3339.7,3338.6,1.89672947]
[1768417611113,1.45951801,3340.5,3338.7,1.50072947]
[1768417611268,5.9873069,3340.4,3338.9,1.50072947]
[1768417612873,5.9873069,3340.4,3339.0,1.89672947]
[1768417613276,5.9873069,3340.4,3339.1,4.49554843]
[1768417613597,6.62603759,3340.4,3339.1,4.98470327]
[1768417613990,6.62603759,3340.4,3339.1,1.98988431]
[1768417614180,6.62603759,3340.4,3339.2,1.50072947]
[1768417614514,3.63238414,3340.4,3339.2,1.50072947]
[1768417614680,6.62603759,3340.4,3339.2,1.50072947]
[1768417615105,6.62603759,3340.4,3339.3,1.50072947]
[1768417616016,3.63238414,3340.4,3339.3,4.4953601]
[1768417616398,6.62603759,3340.4,3339.3,4.4953601]
[1768417616900,0.002,3340.1,3339.4,1.50072947]
[1768417619612,0.002,3340.1,3339.4,0.396]
[1768417620222,0.002,3340.1,3339.2,0.8375662]
[1768417620443,0.002,3340.1,3339.1,0.396]
[1768417620731,1.11406308,3340.1,3339.1,0.396]
[1768417621326,1.11406308,3340.1,3339.1,3.39079557]
[1768417621538,0.002,3340.1,3339.2,1.50072947]
[1768417622235,0.002,3340.1,3339.3,1.50072947]
[1768417622604,0.002,3340.1,3339.3,1.53067586]
[1768417623011,0.002,3340.4,3340.0,1.50072947]
[1768417623205,0.002,3340.4,3340.1,1.50072947]
[1768417623408,0.002,3340.4,3340.1,0.396]
[1768417623630,2.99569815,3340.4,3339.5,1.50072947]
[1768417623950,2.99569815,3340.4,3339.9,0.396]
[1768417624308,0.002,3340.4,3339.8,0.396]
[1768417624515,0.002,3340.4,3339.9,1.50072947]
[1768417626300,0.002,3340.4,3339.7,4.49497291]
[1768417626501,0.002,3340.4,3339.8,0.396]
[1768417626707,0.002,3340.4,3339.7,4.49497291]
[1768417626708,0.002,3340.4,3339.6,0.15007295]
[1768417626912,0.002,3340.4,3339.6,0.396]
[1768417627338,1.46151801,3340.4,3339.0,2.99485247]
[1768417627638,1.46151801,3340.4,3339.4,0.396]
[1768417627838,1.46151801,3340.4,3338.9,1.50072947]
[1768417628139,1.64766981,3340.4,3339.0,0.54607295]
[1768417628341,5.98748614,3340.3,3339.0,0.54607295]
[1768417628723,1.45951801,3340.2,3339.0,0.54607295]
[1768417628924,1.46151801,3340.1,3338.5,4.64911663]
[1768417629118,1.49894203,3340.1,3338.6,3.39120632]
[1768417629316,1.49894203,3340.1,3338.7,2.99517145]
[1768417629520,1.46151801,3340.1,3338.6,3.39122834]
[1768417629742,1.49894203,3340.1,3338.7,2.99517317]
[1768417630043,1.04801712,3340.0,3338.7,3.79920446]
[1768417630420,1.45951801,3339.8,3338.5,0.15306839]
[1768417630737,1.45951801,3339.8,3338.3,4.63221605]
[1768417630915,1.45951801,3339.8,3338.4,1.50072947]
[1768417631512,1.45951801,3339.8,3338.6,2.99522753]
[1768417632409,5.98856184,3339.7,3338.5,2.9953271]
[1768417632643,0.74480799,3339.6,3338.5,2.9953271]
[1768417633049,0.74480799,3339.6,3338.4,2.99541592]
[1768417633340,2.204326,3339.6,3338.4,2.99541592]
[1768417634737,2.99446024,3339.5,3338.4,2.99541592]
[1768417635107,1.45951801,3339.4,3338.5,0.396]
[1768417635446,0.81931625,3339.4,3338.5,0.396]
[1768417636620,5.98927918,3339.3,3338.5,0.396]
[1768417636806,5.98927918,3339.3,3337.7,0.001]
[1768417636807,1.45951801,3339.2,3337.8,1.50072947]
[1768417637012,1.45951801,3339.2,3337.7,0.001]
[1768417637013,1.45951801,3339.2,3337.7,3.39305758]
[1768417637235,1.45951801,3339.2,3337.7,0.397]
[1768417637439,1.45951801,3339.0,3337.7,0.397]
[1768417637638,1.45951801,3339.0,3337.7,0.001]
[1768417638955,1.45951801,3338.8,3337.7,0.001]
[1768417639116,1.45951801,3338.6,3337.7,0.001]
[1768417639450,1.64546981,3338.5,3337.7,0.001]
[1768417639746,1.64546981,3338.5,3336.8,4.49759168]
[1768417640050,1.64546981,3338.5,3336.9,3.39278729]
[1768417640347,1.64546981,3338.5,3336.9,0.396]
[1768417640517,1.64546981,3338.5,3337.0,0.396]
[1768417640716,0.20454698,3338.4,3337.1,2.99658306]
[1768417640952,5.9910733,3338.3,3337.0,5.57663061]
[1768417641244,5.9910733,3338.3,3338.0,0.001]
[1768417641446,1.34445676,3338.2,3336.9,2.99677463]
[1768417641613,1.34445676,3338.2,3336.8,4.39175112]
[1768417641813,1.0535584,3338.1,3336.9,1.13487982]
[1768417642024,1.0535584,3338.1,3336.9,4.13164194]
[1768417642852,1.0535584,3338.1,3336.9,1.13487982]
[1768417643030,5.99161174,3338.0,3336.9,4.13166551]
[1768417643214,2.99580587,3338.0,3336.9,4.13166551]
[1768417643539,2.99580587,3338.0,3337.0,0.85234385]
[1768417644067,5.99161174,3338.0,3337.0,0.85234385]
[1768417644746,4.04930893,3338.1,3337.0,0.85234385]
[1768417644941,5.99150106,3338.1,3337.0,0.85234385]
[1768417645452,2.99575053,3338.1,3337.0,3.84903805]
[1768417646840,2.99575053,3338.1,3337.0,8.24064015]
[1768417647248,2.99575053,3338.1,3337.0,5.24393653]
[1768417647541,5.99150106,3338.1,3337.0,5.24393653]
[1768417647844,5.99150106,3338.1,3337.0,5.63993653]
[1768417648014,6.02894751,3338.1,3337.0,5.63993653]
[1768417648547,1.34445676,3338.0,3336.7,1.39489848]
[1768417648720,1.34445676,3338.0,3336.8,3.3928661]
[1768417648920,1.34445676,3338.0,3336.8,1.79089848]
[1768417649175,1.34445676,3338.0,3336.9,2.99678164]
[1768417649344,4.34031214,3338.0,3336.9,3.77522415]
[1768417649679,4.34031214,3338.0,3337.0,0.02996703]
[1768417650051,7.33616752,3338.0,3336.9,3.77522415]
[1768417650376,7.33616752,3338.0,3336.9,3.77521822]
[1768417650770,4.34031214,3338.0,3336.9,3.80518615]
[1768417650959,4.34031214,3338.0,3337.0,0.85929566]
[1768417651165,7.33616752,3338.0,3337.0,0.85929566]
[1768417651854,2.99585538,3338.0,3337.0,5.25088407]
[1768417652056,2.99585538,3338.0,3337.1,1.39489848]
[1768417652373,5.99171076,3338.0,3337.1,1.39489848]
[1768417652550,7.0102175,3338.0,3336.8,1.79089848]
[1768417653071,7.0102175,3338.0,3337.2,0.001]
[1768417657572,0.7335889,3338.0,3337.2,0.001]
[1768417658400,2.99589562,3337.9,3337.2,0.001]
[1768417658614,2.99583676,3338.0,3337.2,0.001]
[1768417658787,0.03744869,3337.9,3337.2,0.001]
[1768417659098,5.99167352,3338.0,3337.2,0.001]
[1768417659299,6.72528655,3338.0,3337.2,0.001]
[1768417659603,3.72944979,3338.0,3337.2,1.39589848]
[1768417660600,6.72528655,3338.0,3337.2,1.39589848]
[1768417660995,6.72528655,3338.0,3337.2,0.001]
[1768417663192,0.03744869,3337.9,3337.2,0.001]
[1768417663386,6.72528655,3338.0,3337.2,0.001]
[1768417663797,3.72944979,3338.0,3337.2,0.001]
[1768417664001,0.401,3338.0,3337.2,1.39589848]
[1768417664413,0.401,3338.4,3337.2,1.39589848]
[1768417664725,0.401,3338.4,3337.6,1.39489848]
[1768417664921,3.12224012,3339.8,3337.7,1.39489848]
[1768417664922,2.99481896,3339.1,3337.7,1.39489848]
[1768417665223,2.99481896,3339.1,3337.5,0.001]
[1768417665224,1.34445676,3338.9,3337.5,0.001]
[1768417665466,1.34445676,3338.6,3337.5,0.001]
[1768417665591,1.34445676,3338.4,3337.5,0.001]
[1768417665903,1.34445676,3338.3,3337.5,0.001]
[1768417666106,1.55644776,3338.2,3337.2,0.001]
[1768417666309,1.51900244,3338.2,3337.2,0.001]
[1768417667322,2.99571612,3338.1,3337.2,1.39589848]
[1768417667716,2.99564891,3338.2,3337.3,1.39489848]
[1768417668025,0.401,3338.5,3337.3,1.39489848]
[1768417668217,0.401,3338.5,3337.5,1.39489848]
[1768417668419,2.99501187,3338.9,3337.5,1.39489848]
[1768417669394,5.99002374,3338.9,3337.7,1.39489848]
[1768417671009,1.34324491,3338.8,3337.6,0.396]
[1768417671341,0.81681962,3338.7,3337.6,1.70663168]
[1768417671632,2.99526747,3338.6,3337.6,1.70663168]
[1768417671926,5.99053494,3338.6,3337.6,1.70663168]
[1768417674704,5.99053494,3338.6,3337.6,1.31063168]
[1768417676531,0.002,3338.3,3337.6,1.31063168]
[1768417677817,0.002,3338.3,3337.6,5.09462955]
[1768417678230,0.002,3338.3,3337.6,2.0984767]
[1768417678408,0.002,3338.3,3337.6,1.31063168]
[1768417681931,0.002,3338.3,3337.4,1.70663168]
[1768417682130,1.34524491,3338.3,3337.2,0.001]
[1768417682310,1.38268911,3338.3,3337.2,0.001]
[1768417682514,1.34324491,3338.1,3337.2,0.001]
[1768417682709,0.401,3338.0,3337.2,0.001]